Workbook

Sheet Munka1
G1: A 3/2012.(IV.26.)rend.5.§.(g.)pontban
G2: megállapított 9.sz.melléklet
F3: KIMUTATÁS
D4: Nyírkarász község Önkormányzat 2011. évi vagyona
I5: ezer Ft-ban
A6: Eszközök | C6: Állományi értéke | G6: Források | H6: Állományi érték
D7: Előző évi | E7: Tárgyévi | H7: Előző évi | I7: Tárgyévi
A8: Szellemi termékek | D8: 4332 | E8: 7371 | G8: Induló tőke | H8: 38903 | I8: 38903
A9: Immat.javak össz. | D9: 4332 | E9: 7371 | G9: Tőkeváltozások | H9: 883619 | I9: 991916
A10: Ingatlanok | D10: 990583 | E10: 960762 | G10: Saját tőke összesen: | H10: =SUM(H8:H9) -> 922522 | I10: =SUM(I8:I9) -> 1030819
A11: Gépek,berendezések | D11: 17656 | E11: 25250 | G11: Költségvetési tartalék elszámolás | H11: 25267 | I11: 23339
A12: felszerelések | G12: Ebből:
A13: Járművek | D13: 23067 | E13: 17978 | G13: -tárgyévi tart. | H13: 25267 | I13: 23339
A14: Beruházások,felújítások
A15: Beruházásra adott előleg | D15: 13660 | E15: 13660 | G15: Költségvetési
A16: Tárgyi eszközök össz. | D16: =SUM(D10:D15) -> 1044966 | E16: =SUM(E10:E15) -> 1017650 | G16: tartalék összesen: | H16: 25267 | I16: 23339
A17: Üzemeltetésre,vagyonk adott eszk | E17: 107567
A18: Anyagok | D18: 34 | E18: 5 | G18: Beruházási és fejleszt.hitel | H18: 2897 | I18: 1752
A19: Készletek össz. | D19: 34 | E19: 5 | G19: Hosszú lejárat.köt.össz. | H19: 2897 | I19: 1752
A20: Adósok | D20: 9704 | E20: 12899 | G20: Rövid lejáratú hitelek | H20: 97968 | I20: 76661
A21: Követelések áruszáll.és szolgált. | D21: 404 | E21: 266 | G21: Szállítói kötelezettségek | H21: 33586 | I21: 32975
A22: Egyéb követelések | G22: Egyéb rövid lejár.kötelezettségek | H22: 2467 | I22: 1855
A23: Követelések össz. | D23: =SUM(D20:D22) -> 10108 | E23: =SUM(E20:E22) -> 13165 | G23: iparűzési adó feltöltés
A24: Pénztárak és betétkönyvek | D24: 427 | E24: 1285 | G24: helyi adó túlfizetés | H24: 2467 | I24: 1855
A25: Költségvetési bankszámlák | D25: 9767 | E25: 7001 | G25: támogatási program előlege
G26: tárgyévet terh.rövid lejár.kötelezettség
A27: Pénzeszközök | G27: egyéb különféle kötelezettségek | I27: 1696
A28: összesen: | D28: =SUM(D24:D27) -> 10194 | E28: =SUM(E24:E27) -> 8286 | G28: Rövidlejáratu kötelezettségek | H28: =SUM(H20+H21+H22) -> 134021 | I28: =SUM(I20+I21+I22+I27) -> 113187
A29: Költségv.aktív függő elszámolások | D29: 27472 | E29: 52657 | G29: Költségvetési
A30: Költségv.kívüli aktív pü.elszámolások | G30: passzív függő elsz. | H30: 12399 | I30: 37604
A31: Egyéb aktív pü-i | G31: Egyéb passzív pü-i
A32: elszámámolás összesen: | D32: =SUM(D29:D31) -> 27472 | E32: =SUM(E29:E31) -> 52657 | G32: elszámolások: | H32: 12399 | I32: 37604
A33: Forgóeszközök | G33: Kötelezettségek
A34: összesen: | D34: =SUM(D19+D23+D28+D32) -> 47808 | E34: =SUM(E19+E23+E28+E32) -> 74113 | G34: összesen: | H34: =SUM(H19+H28+H32) -> 149317 | I34: =SUM(I19+I28+I32) -> 152543
A36: Eszközök összesen: | D36: =SUM(D34+D16+D9) -> 1097106 | E36: =SUM(E9+E16+E17+E34) -> 1206701 | G36: Források összesen: | H36: =SUM(H10+H16+H34) -> 1097106 | I36: =SUM(I10+I16+I34) -> 1206701

Sheet Munka2

Sheet Munka3
